bitfinex-derivatives/quotes_ETHF0:USTF0_20260121
["timestamp","ask_amount","ask_price","bid_price","bid_amount"]
[1768971541835,0.13981431,2982.9,2981.8,2.40860351]
[1768971542037,0.13981431,2982.9,2981.7,2.40860351]
[1768971543427,0.13981431,2982.9,2981.8,2.40860351]
[1768971545036,0.13981431,2982.9,2982.0,3.48954273]
[1768971551238,0.13981431,2982.9,2982.1,2.40860351]
[1768971551739,0.13981431,2982.9,2982.0,3.48954273]
[1768971552338,0.13981431,2982.9,2982.1,2.40860351]
[1768971553638,0.13981431,2982.8,2981.9,2.40860351]
[1768971555340,0.13981431,2982.8,2982.0,2.40860351]
[1768971558236,0.14106283,2982.7,2981.9,2.40860351]
[1768971559544,0.14106283,2982.7,2981.8,2.40860351]
[1768971561745,0.14106283,2982.7,2981.8,3.48954273]
[1768971561948,0.14106283,2982.7,2981.8,2.40860351]
[1768971562447,0.14106283,2982.6,2981.8,2.40860351]
[1768971563746,0.30889283,2982.6,2981.8,2.40860351]
[1768971563957,0.30890283,2982.4,2981.7,2.40860351]
[1768971564648,0.16785,2982.3,2981.6,2.40860351]
[1768971564836,0.30891283,2982.3,2981.6,2.40860351]
[1768971565036,0.30891283,2982.3,2981.5,2.41174684]
[1768971565648,0.30891283,2982.2,2981.5,2.41174684]
[1768971566849,0.30891283,2982.2,2981.5,0.00314333]
[1768971567250,0.30891283,2982.2,2981.5,2.41174684]
[1768971567451,0.30891283,2982.2,2981.5,0.00314333]
[1768971568355,0.14106283,2982.6,2981.6,1.08093922]
[1768971569948,0.16782,2982.7,2982.2,1.08093922]
[1768971570149,0.16782,2982.7,2981.6,2.40860351]
[1768971570150,0.16782,2982.7,2982.0,1.08093922]
[1768971570953,0.14106283,2983.0,2982.0,1.08093922]
[1768971577152,0.31247391,2983.3,2982.2,1.08093922]
[1768971577557,0.14106283,2983.2,2982.2,1.08093922]
[1768971586366,0.14268298,2982.8,2982.0,6.20760351]
[1768971587768,0.14268298,2982.8,2981.6,1.08093922]
[1768971587769,0.14268298,2982.4,2981.6,2.40860351]
[1768971588469,0.14268298,2982.4,2981.5,2.41174684]
[1768971588470,0.31052298,2982.4,2981.5,2.41174684]
[1768971588671,0.31052298,2982.4,2981.5,0.00314333]
[1768971589270,0.14268298,2982.3,2981.5,0.00314333]
[1768971593067,0.14268298,2982.3,2981.4,3.48954273]
[1768971593260,0.14268298,2981.2,2980.0,2.40860351]
[1768971593573,0.14268298,2981.5,2980.5,1.08093922]
[1768971594269,0.14510282,2981.5,2980.5,1.08449752]
[1768971594469,1.08093922,2981.1,2980.5,0.0035583]
[1768971594771,1.2236222,2980.9,2979.6,1.08093922]
[1768971594974,0.14268298,2980.8,2979.6,3.74993922]
[1768971595773,0.14268298,2980.8,2979.6,3.75355187]
[1768971596868,0.14268298,2980.8,2979.8,1.08093922]
[1768971599378,0.14268298,2980.8,2980.0,1.08093922]
[1768971601473,0.31059298,2981.2,2980.4,1.08093922]
[1768971602382,0.00241984,2981.5,2980.8,1.08093922]
[1768971602876,0.00241984,2981.5,2981.0,1.08093922]
[1768971603076,0.14510282,2981.5,2981.0,1.08093922]
[1768971603277,0.14510282,2981.5,2980.8,1.08093922]
[1768971603981,0.14268298,2981.2,2980.0,1.08093922]
[1768971604979,0.14268298,2981.2,2979.6,0.00361265]
[1768971608585,0.14268298,2981.2,2979.8,1.08238456]
[1768971609186,0.14268298,2981.2,2980.2,1.08238456]
[1768971609388,0.00241984,2981.5,2980.2,1.08238456]
[1768971609885,0.14510282,2981.5,2980.2,1.08238456]
[1768971613984,0.00241984,2981.5,2980.5,1.08238456]
[1768971623700,0.00241984,2981.5,2980.5,3.73938456]
[1768971633308,0.00241984,2981.5,2980.5,7.53838456]
[1768971635802,0.14069326,2981.5,2980.3,2.99266071]
[1768971636004,0.14069326,2981.5,2980.2,2.661]
[1768971636804,0.13827342,2981.4,2980.2,2.661]
[1768971638004,0.13827342,2981.3,2979.8,2.99266071]
[1768971638210,0.13827342,2981.1,2979.7,2.99266071]
[1768971638398,0.13827342,2981.1,2979.6,5.65727336]
[1768971638600,0.13827342,2981.1,2979.6,2.66461265]
[1768971639504,0.13827342,2981.0,2979.6,2.66461265]
[1768971644811,0.13827342,2981.0,2979.6,3.74699721]
[1768971645009,0.16791,2981.1,2979.6,3.74699721]
[1768971645306,0.30660502,2981.1,2979.6,3.74699721]
[1768971645909,0.30660502,2981.1,2979.6,6.73965792]
[1768971647413,0.30660502,2981.1,2979.6,3.74699721]
[1768971649511,0.13869502,2981.1,2980.0,1.08238456]
[1768971650009,0.13869502,2981.1,2979.7,1.08238456]
[1768971658614,0.13869502,2981.1,2979.7,4.07504527]
[1768971658920,0.13869502,2981.1,2979.7,1.08238456]
[1768971659620,0.13869502,2981.1,2979.7,4.07504527]
[1768971664626,0.13869502,2981.1,2979.8,2.99266071]
[1768971665619,0.13869502,2981.1,2979.8,6.79166071]
[1768971666523,0.13869502,2981.1,2979.9,2.99266071]
[1768971667023,0.13869502,2981.1,2980.1,1.08223665]
[1768971667323,0.13869502,2981.1,2980.2,2.667]
[1768971693860,0.1679,2981.3,2980.3,1.08223665]
[1768971694160,0.1679,2981.3,2980.5,1.08223665]
[1768971702964,0.1455395,2981.5,2980.5,1.08223665]
[1768971705163,0.00241984,2981.5,2980.7,1.08223665]
[1768971705360,0.00241984,2981.5,2981.1,1.08223665]
[1768971705563,0.14498083,2981.9,2980.9,1.08223665]
[1768971706567,0.14851095,2981.9,2980.9,1.08223665]
[1768971708364,0.00353012,2981.9,2980.9,1.08223665]
[1768971711973,0.00353012,2981.9,2981.1,1.08223665]
[1768971718486,0.14132185,2981.8,2980.7,1.08223665]
[1768971718865,0.14132185,2981.8,2980.6,2.653]
[1768971720375,0.14132185,2981.8,2980.7,1.08223665]
[1768971720775,0.14132185,2981.6,2980.4,1.08223665]
[1768971721475,1.2235585,2981.3,2980.3,2.99266071]
[1768971721674,0.14132185,2981.2,2980.2,1.08223665]
[1768971722277,0.14132185,2981.0,2980.1,3.799]
[1768971722478,0.14132185,2981.0,2980.0,1.08223665]
[1768971723781,0.14132185,2980.8,2979.8,3.799]
[1768971723977,0.14132185,2980.8,2979.8,1.08223665]
[1768971724279,0.14132185,2980.8,2979.7,2.653]
[1768971725381,0.14132185,2980.8,2979.6,1.0858493]
[1768971725382,0.14132185,2980.6,2979.6,0.00361265]
[1768971726680,0.14132185,2980.6,2979.6,1.0858493]
[1768971726884,0.14132185,2980.6,2979.6,0.00361265]
[1768971727481,0.14132185,2981.0,2979.8,1.08257848]
[1768971727781,0.14132185,2981.0,2980.1,1.08257848]
[1768971728485,0.14132185,2981.0,2979.8,1.08257848]
[1768971734983,0.14132185,2981.0,2979.6,0.00361265]
[1768971744696,0.14132185,2981.0,2979.6,3.80261265]
[1768971747186,0.14132185,2981.0,2979.6,3.97060265]
[1768971747585,0.14132185,2981.0,2979.6,6.96326336]
[1768971747995,0.14132185,2981.0,2979.6,3.16426336]
[1768971749396,0.14132185,2981.0,2979.7,2.99266071]
[1768971749597,0.14132185,2981.0,2979.8,2.654]
[1768971750197,0.14132185,2981.0,2979.9,1.08257848]
[1768971751100,0.14132185,2981.0,2979.8,5.81464071]
[1768971751301,0.14132185,2981.0,2979.9,2.654]
[1768971752286,0.14132185,2981.0,2979.9,5.64666071]
[1768971753197,0.14132185,2981.0,2979.9,2.99266071]
[1768971753399,0.14132185,2981.0,2979.8,2.654]
[1768971754399,0.14132185,2981.0,2979.6,0.00361265]
[1768971754594,0.14132185,2981.0,2979.6,2.65761265]
[1768971757001,0.1480719,2980.8,2979.6,2.65761265]
[1768971757602,0.1480719,2980.8,2979.6,0.00361265]
[1768971760909,0.1480719,2980.6,2979.6,0.00361265]
[1768971763017,0.3160119,2980.6,2979.6,0.00361265]
[1768971763217,0.1480719,2980.4,2979.6,0.00361265]
[1768971766918,0.3160219,2980.4,2979.6,0.00361265]
[1768971767115,0.13519064,2980.3,2979.6,0.00361265]
[1768971776220,0.13519064,2980.7,2979.8,1.08257848]
[1768971777218,0.13519064,2981.3,2979.8,1.08257848]
[1768971777419,0.13519064,2981.1,2979.8,1.08257848]
[1768971782824,0.13519064,2981.1,2979.8,4.07523919]
[1768971783132,0.13519064,2981.1,2979.9,2.99266071]
[1768971784531,0.13519064,2981.1,2979.8,4.07523919]
[1768971786821,0.13519064,2981.1,2979.8,2.99266071]
[1768971787028,0.13519064,2981.1,2980.0,1.08226876]
[1768971789531,0.13519064,2981.1,2980.2,1.08226876]
[1768971790539,0.13519064,2981.1,2979.8,4.07492947]
[1768971790936,0.13519064,2981.1,2980.2,1.08226876]
[1768971794041,0.13519064,2981.1,2980.4,1.08226876]
[1768971794335,0.13519064,2981.1,2980.2,1.08226876]
[1768971797440,0.1413008,2981.0,2979.8,4.24290947]
[1768971797744,0.1413008,2981.0,2979.9,2.636]
[1768971800844,0.1413008,2981.0,2980.0,1.08226876]
[1768971806250,0.1413008,2981.0,2980.2,1.08226876]
[1768971806447,0.1413008,2981.4,2980.2,1.08226876]
[1768971814555,0.1413008,2981.4,2980.4,1.08226876]
[1768971814856,0.1413008,2981.4,2980.2,1.08226876]
[1768971820062,0.1413008,2981.4,2980.4,1.08226876]
[1768971820263,0.1413008,2981.4,2980.2,2.99266071]
[1768971820264,0.1413008,2981.4,2980.6,1.08226876]
[1768971837071,0.1413008,2981.4,2980.4,3.70726876]
[1768971837472,0.1413008,2981.4,2980.5,2.41156099]
[1768971842882,0.1413008,2981.4,2980.5,5.03956099]
[1768971843183,0.1413008,2981.4,2980.5,2.41156099]
[1768971843376,0.1413008,2981.4,2980.5,5.03956099]
[1768971848190,0.1413008,2981.4,2980.6,2.41156099]
[1768971849584,0.1413008,2981.4,2980.5,5.04356099]
[1768971849889,0.1413008,2981.4,2980.6,2.41156099]
[1768971851379,0.1413008,2981.4,2980.5,5.04456099]
[1768971851583,0.1413008,2981.4,2980.5,2.41156099]
[1768971852596,0.1413008,2981.4,2980.4,2.41156099]
[1768971852892,0.1413008,2981.4,2980.5,2.41156099]
[1768971853086,0.1413008,2981.4,2980.4,2.41156099]
[1768971858296,0.14612123,2981.3,2980.4,2.41156099]
[1768971872406,0.14612123,2981.3,2980.5,2.41156099]
[1768971886335,0.14917325,2981.8,2980.6,2.41156099]
[1768971886633,1.18341527,2981.7,2980.7,2.41156099]
[1768971886835,0.14917325,2981.8,2980.7,2.41156099]
[1768971887033,1.18341326,2981.7,2980.7,2.41156099]
[1768971887333,0.14917325,2981.8,2980.6,2.41156099]
[1768971887529,1.18312818,2981.7,2980.6,2.41156099]
[1768971887727,0.14917325,2981.8,2980.6,2.41156099]
[1768971887926,1.18312833,2981.7,2980.6,2.41156099]
[1768971888128,0.14917325,2981.8,2980.6,2.41156099]
[1768971888329,1.18303093,2981.7,2980.6,2.41156099]
[1768971888531,0.14917325,2981.8,2980.6,2.41156099]
[1768971888729,1.18299816,2981.7,2980.6,2.41156099]
[1768971888929,0.14917325,2981.8,2980.6,2.41156099]
[1768971889131,1.18299791,2981.7,2980.6,2.41156099]
[1768971889337,0.14917325,2981.8,2980.6,2.41156099]
[1768971889535,1.33207234,2981.7,2980.6,2.41156099]
[1768971889835,0.14917325,2981.7,2980.4,5.4042217]
[1768971890138,0.14917325,2981.7,2980.4,2.41156099]
[1768971892533,0.16787,2981.8,2980.5,2.41156099]
[1768971892738,0.00353012,2981.9,2980.8,2.41156099]
[1768971893139,0.00353012,2981.9,2980.9,2.41156099]
[1768971893436,0.00353012,2981.9,2980.8,2.41156099]
[1768971895042,0.00353012,2981.9,2980.7,1.08192609]
[1768971895043,0.00353012,2981.9,2980.9,2.41156099]
[1768971895340,0.00353012,2981.9,2981.0,2.628]
[1768971899841,0.00353012,2981.9,2981.0,5.03956099]
[1768971900437,0.14917325,2982.3,2981.1,1.08192609]
[1768971900638,0.14917325,2982.3,2981.2,2.41156099]
[1768971901536,0.15241061,2982.3,2981.2,2.41156099]
[1768971901738,0.15241061,2982.3,2981.3,2.41156099]
[1768971903244,0.15241061,2982.3,2981.2,2.41156099]
[1768971908949,0.15241061,2982.3,2981.4,1.08129068]
[1768971916451,0.15241061,2982.3,2981.6,1.08129068]
[1768971917053,1.08129068,2982.8,2981.6,1.08129068]
[1768971917854,0.16781,2982.9,2981.8,1.08129068]
[1768971918053,0.00328315,2982.8,2981.8,1.08422474]
[1768971918454,0.00328315,2982.8,2981.8,0.00293406]
[1768971919057,0.14732119,2982.8,2981.8,0.00293406]
[1768971920264,0.14732119,2982.8,2981.8,3.49578573]
[1768971921363,0.14403804,2981.8,2980.9,3.799]
[1768971921554,1.08129068,2981.2,2980.1,2.628]
[1768971921752,1.08129068,2981.2,2980.3,1.08129068]
[1768971921753,0.14403804,2981.2,2980.3,1.08129068]
[1768971922063,0.14403804,2981.2,2980.1,3.70929068]
[1768971922259,0.14403804,2981.2,2980.1,3.71360883]
[1768971923169,1.22532872,2981.6,2980.3,1.08129068]
[1768971923969,0.14403804,2982.0,2980.9,1.08129068]
[1768971924266,0.14403804,2981.9,2980.7,1.08129068]
[1768971926565,1.08129068,2982.2,2980.9,1.08129068]
[1768971927262,0.31187804,2982.3,2981.1,1.08129068]
[1768971927971,0.16784,2982.3,2981.1,1.08129068]
[1768971928167,0.16784,2982.3,2981.1,2.99129068]
[1768971928370,1.08129068,2982.5,2981.1,2.99129068]
[1768971928872,1.22532872,2982.5,2981.1,2.99129068]
[1768971934071,1.08129068,2982.3,2981.1,2.99129068]
[1768971934271,1.08129068,2982.3,2980.9,1.22418759]
[1768971934474,1.08129068,2982.1,2981.0,2.624]
[1768971938175,1.08129068,2982.3,2981.0,2.624]
[1768971944793,1.22532872,2982.1,2981.0,2.62]
[1768971949290,1.08129068,2982.1,2981.0,2.62]
[1768971950296,1.08129068,2982.3,2981.0,2.62]
[1768971954298,1.08129068,2982.3,2981.0,3.11558143]
[1768971958201,1.08129068,2982.3,2981.0,6.10824214]
[1768971960598,1.08129068,2981.9,2981.1,2.615]
[1768971960797,1.08129068,2981.9,2980.9,3.799]
[1768971961001,1.08129068,2981.5,2980.9,3.799]
[1768971961198,1.08129068,2981.5,2980.1,1.08560883]
[1768971961199,1.08129068,2981.1,2980.1,0.00431815]
[1768971961395,0.63326856,2981.5,2980.1,2.61931815]
[1768971961396,1.54666924,2981.3,2980.1,2.61931815]
[1768971962203,1.54666924,2981.3,2980.1,3.70060883]
[1768971967408,1.71456924,2981.3,2980.1,0.00431815]
[1768971967612,1.08129068,2980.9,2980.1,0.00431815]
[1768971968010,1.08129068,2981.1,2980.1,0.00431815]
[1768971971113,0.46537856,2981.2,2980.1,0.00431815]
[1768971973316,0.46537856,2981.1,2980.1,0.00431815]
[1768971976116,1.08228718,2980.9,2980.1,0.00431815]
[1768971976415,0.80761447,2980.8,2979.4,3.10758143]
[1768971976617,0.80761447,2980.8,2979.4,0.49558143]
[1768971976821,0.80761447,2980.8,2979.3,2.612]
[1768971977313,0.80761447,2980.8,2979.3,2.61524034]
[1768971979918,0.80761447,2980.8,2979.3,0.00324034]
[1768971980119,0.80761447,2980.8,2979.3,2.61424034]
[1768971982020,0.80761447,2980.8,2979.3,3.36848262]
[1768971982719,0.1679,2981.3,2979.9,0.75424228]
[1768971988314,0.80761447,2981.6,2979.9,0.75424228]
[1768971988512,0.97547447,2982.0,2980.1,0.75424228]
[1768971988718,1.19044805,2981.9,2980.3,0.75424228]
[1768971988919,0.87856728,2981.8,2980.3,0.75424228]
[1768971989220,0.97547447,2982.0,2980.3,0.75424228]
[1768971989421,1.19109278,2981.9,2980.3,0.75424228]
[1768971989625,0.87906397,2981.8,2980.3,0.75424228]
[1768971989825,0.97547447,2982.0,2980.3,0.75424228]
[1768971990024,1.19109331,2981.9,2980.3,0.75424228]
[1768971990224,0.87906438,2981.8,2980.3,0.75424228]
[1768971990424,0.97547447,2982.0,2980.3,0.75424228]
[1768971990622,1.99863749,2981.9,2980.3,0.75424228]
[1768971990830,0.87900615,2981.8,2980.3,0.75424228]
[1768971991122,0.80761447,2981.9,2980.3,0.75424228]
[1768971991318,0.87910074,2981.8,2980.3,0.75424228]
[1768971991520,0.80761447,2981.9,2980.3,0.75424228]
[1768971991715,4.18228718,2982.1,2979.9,3.74690299]
[1768971991716,0.80761447,2981.6,2979.9,3.74690299]
[1768971991920,1.08228718,2981.7,2979.3,3.36524034]
[1768971991921,0.97551447,2981.4,2979.7,2.99266071]
[1768971992120,0.97551447,2981.4,2979.8,2.608]
[1768971993924,0.97551447,2981.4,2979.8,3.36224228]
[1768971998634,0.97551447,2981.4,2979.9,0.75424228]
[1768972001826,0.97551447,2981.4,2979.9,3.74690299]
[1768972005224,0.97551447,2981.4,2980.0,0.95518877]
[1768972005428,0.94665467,2981.8,2980.0,0.95518877]
[1768972005736,1.19083904,2981.7,2980.1,0.98568325]
[1768972005936,0.94665467,2981.8,2980.1,0.98568325]
[1768972006136,1.19083736,2981.7,2980.1,0.98568325]
[1768972006439,0.94665467,2981.8,2980.1,0.98568325]
[1768972006625,1.19088084,2981.7,2980.1,0.98568325]
[1768972006831,0.94665467,2981.8,2980.1,0.98568325]
[1768972007032,1.19088101,2981.7,2980.1,0.98568325]
[1768972007333,0.87893016,2981.6,2980.1,0.98568325]
[1768972007530,0.94665467,2981.8,2980.1,0.98568325]
[1768972007730,1.19104451,2981.7,2980.1,0.98568325]
[1768972007931,0.94665467,2981.8,2980.1,0.98568325]
[1768972008124,0.16786,2982.0,2980.3,0.98568325]
[1768972008329,0.16786,2982.0,2980.4,0.98568325]
[1768972010931,1.13989692,2982.0,2980.4,0.98568325]
[1768972011232,1.13989692,2982.0,2980.4,3.97834396]
[1768972011637,1.13989692,2982.0,2980.5,0.98568325]
[1768972011938,1.13989692,2982.0,2980.6,2.604]
[1768972012338,0.87950457,2981.9,2980.6,2.604]
[1768972012538,1.13989692,2982.0,2980.6,2.604]
[1768972012835,0.87950463,2981.9,2980.6,2.604]
[1768972013036,1.13989692,2982.0,2980.6,2.604]
[1768972014336,1.13989692,2982.0,2980.6,3.58968325]
[1768972014938,0.16786,2982.0,2980.7,0.98568325]
[1768972017038,0.97203692,2981.9,2980.5,2.99266071]
[1768972017234,1.08228718,2980.6,2979.5,3.799]
[1768972017437,1.08228718,2980.6,2979.4,0.98568325]
[1768972017438,0.00287517,2980.6,2979.4,0.98568325]
[1768972018738,1.08228718,2980.2,2979.1,1.674]
[1768972019340,1.08228718,2980.2,2979.0,0.98568325]
[1768972026048,1.08228718,2979.8,2979.0,0.98568325]
[1768972027144,1.08228718,2979.8,2978.4,1.112]
[1768972027543,0.16799,2979.7,2978.4,1.112]
[1768972027953,0.16799,2979.7,2978.1,0.1]
[1768972028248,0.168,2979.6,2978.1,0.10367659]
[1768972028446,0.168,2979.6,2978.2,4.501]
[1768972028843,4.18228718,2980.5,2978.2,4.501]
[1768972029040,0.16796,2980.2,2978.3,0.98568325]
[1768972030651,0.16797,2980.1,2978.3,0.98568325]
[1768972030854,0.16797,2980.0,2978.3,0.98568325]
[1768972031151,0.16797,2980.0,2978.5,0.98568325]
[1768972032552,0.16797,2980.0,2978.6,0.98568325]
[1768972032850,1.25120409,2980.0,2978.8,0.98568325]
[1768972035058,1.08323409,2979.8,2978.8,0.98568325]
[1768972037561,1.25120409,2980.0,2978.8,0.98568325]
[1768972042266,0.16799,2979.8,2978.6,2.594]
[1768972042469,1.08323409,2979.5,2978.3,1.25324899]
[1768972042678,1.08323409,2979.5,2978.4,1.25324899]
[1768972042966,1.08323409,2979.7,2978.4,1.25324899]
[1768972050972,1.08323409,2979.5,2978.4,1.25324899]
[1768972051476,1.08323409,2979.7,2978.4,1.25324899]
[1768972051977,1.08323409,2979.7,2978.5,1.08323409]
[1768972052181,1.08323409,2979.7,2978.3,1.25324899]
[1768972052372,1.30132985,2979.6,2978.4,2.33648308]
[1768972052567,1.30132985,2979.5,2978.4,2.33648308]
[1768972052874,1.08323409,2979.7,2978.5,1.25324899]
[1768972053071,1.30137023,2979.6,2978.5,1.25324899]
[1768972053270,1.08323409,2979.7,2978.5,1.25324899]
[1768972053466,0.93397543,2979.6,2978.5,1.25324899]
[1768972053678,1.08323409,2979.7,2978.5,1.25324899]
[1768972053880,0.93377816,2979.6,2978.5,1.25324899]
[1768972054179,1.08323409,2979.7,2978.5,1.25324899]
[1768972054381,0.93360403,2979.6,2978.5,1.25324899]
[1768972054578,1.08323409,2979.7,2978.5,1.25324899]
[1768972054771,0.93360694,2979.6,2978.6,1.08323409]
[1768972054976,1.08323409,2980.1,2978.9,1.25324899]
[1768972055176,1.29952603,2980.0,2978.9,1.25324899]
[1768972055375,0.93366893,2979.9,2978.9,1.25324899]
[1768972055576,1.08323409,2980.1,2979.1,1.25324899]
[1768972055774,1.29971679,2980.0,2979.1,1.25324899]
[1768972055972,1.08323409,2980.1,2979.1,1.25324899]
[1768972056169,1.29946525,2980.0,2979.1,1.25324899]
[1768972056481,1.08323409,2979.7,2978.6,1.25324899]
[1768972056670,1.08323409,2979.9,2978.6,1.25324899]
[1768972057176,1.08323409,2979.7,2978.6,3.84124899]
[1768972057379,1.08323409,2979.5,2978.6,3.84124899]
[1768972057879,1.08323409,2979.7,2978.6,3.84124899]
[1768972058781,1.08323409,2979.9,2978.8,1.25324899]
[1768972059282,1.08323409,2979.7,2978.6,2.588]
[1768972060476,1.08323409,2979.7,2978.4,1.25324899]
[1768972060682,1.08323409,2979.7,2978.4,3.84024899]
[1768972060881,1.08323409,2979.7,2978.5,1.25324899]
[1768972062285,1.08323409,2979.9,2978.7,1.08323409]
[1768972062479,0.16796,2980.2,2978.9,2.33648308]
[1768972062480,1.08323409,2980.1,2978.9,2.33648308]
[1768972062780,1.29907452,2980.0,2978.9,2.33648308]
[1768972062981,0.93306751,2979.9,2978.9,2.33648308]
[1768972063183,1.08323409,2979.9,2978.9,1.25324899]
[1768972066488,0.93296351,2979.8,2978.9,1.25324899]
[1768972066686,1.08323409,2979.9,2978.9,1.25324899]
[1768972066981,0.93296348,2979.8,2978.9,1.25324899]
[1768972067188,1.08323409,2979.9,2978.9,1.25324899]
[1768972068186,0.9329661,2979.8,2978.9,1.25324899]
[1768972068387,1.08323409,2979.9,2978.5,2.53681652]
[1768972068588,1.08323409,2979.7,2978.5,2.53681652]
[1768972070584,1.08323409,2979.7,2978.5,4.03658243]
[1768972070882,1.08323409,2979.7,2978.5,1.45358243]
[1768972071489,1.08323409,2979.7,2978.5,2.53681652]
[1768972072791,1.25121409,2979.9,2978.7,1.08323409]
[1768972072995,1.29921149,2979.8,2978.8,1.45358243]
[1768972073290,1.25121409,2979.9,2978.8,1.45358243]
[1768972073591,1.29912006,2979.8,2978.8,1.45358243]
[1768972073792,1.25121409,2979.9,2978.8,1.45358243]
[1768972074093,1.29910969,2979.8,2978.8,1.45358243]
[1768972074281,1.25121409,2979.9,2978.8,1.45358243]
[1768972074480,1.08323409,2979.7,2978.4,4.03658243]
[1768972074688,1.08323409,2979.5,2978.4,1.45358243]
[1768972074892,1.08323409,2979.3,2978.5,2.582]
[1768972076282,1.08323409,2979.3,2978.4,1.45358243]
[1768972076479,1.08323409,2979.3,2978.2,2.582]
[1768972078196,1.08323409,2979.5,2978.3,1.45358243]
[1768972078393,1.08323409,2979.5,2978.3,2.53681652]
[1768972078688,0.16797,2980.2,2978.4,1.45358243]
[1768972078893,2.37975786,2980.1,2978.9,1.45358243]
[1768972079098,1.29652377,2980.0,2978.9,1.45358243]
[1768972079299,1.29652377,2979.9,2978.9,1.45358243]
[1768972079601,0.93263926,2979.8,2978.9,1.45358243]
[1768972081600,0.17081517,2980.6,2978.9,1.45358243]
[1768972081792,0.17081517,2980.6,2978.2,2.582]
[1768972081793,1.2926488,2980.5,2979.4,1.08323409]
[1768972081996,1.2926488,2980.5,2979.2,1.45358243]
[1768972081997,0.00287517,2980.6,2979.6,2.53681652]
[1768972082399,0.00287517,2980.6,2979.6,1.45358243]
[1768972082898,1.08610926,2980.6,2979.6,1.45358243]
[1768972083100,0.00287517,2980.6,2979.6,2.53681652]
[1768972083295,0.00287517,2980.6,2979.7,1.45358243]
[1768972086598,1.25114409,2981.2,2980.1,1.45358243]
[1768972086802,0.16791,2981.2,2980.1,1.45358243]
[1768972087701,1.25432291,2981.2,2980.1,1.45358243]
[1768972095007,0.17108882,2981.2,2980.1,1.45358243]
[1768972096802,0.16787,2981.8,2980.3,1.66804193]
[1768972097904,0.1711541,2981.8,2980.6,1.66804193]
[1768972105109,0.0032841,2981.8,2980.6,1.66804193]
[1768972110813,1.67015256,2982.9,2981.1,1.66804193]
[1768972111013,1.28678126,2982.8,2981.1,1.66804193]
[1768972111210,0.92534145,2982.7,2981.1,1.66804193]
[1768972111409,1.67015256,2982.9,2981.1,1.66804193]
[1768972111613,1.28737398,2982.8,2981.1,1.66804193]
[1768972111814,0.9257731,2982.7,2981.1,1.66804193]
[1768972113020,0.00287884,2982.8,2981.1,1.66804193]
[1768972114017,0.00287884,2982.8,2981.5,1.66804193]
[1768972120026,0.00287884,2982.8,2981.6,1.66804193]
[1768972122524,0.16781,2983.0,2981.6,1.66804193]
[1768972122724,0.16781,2983.0,2982.1,1.66804193]
[1768972122923,4.08128252,2984.1,2982.5,1.66804193]
[1768972123129,0.16777,2983.6,2982.5,1.66804193]
[1768972123625,0.17211741,2983.6,2982.5,1.67091128]
[1768972123928,0.00434741,2983.6,2982.7,2.75036755]
[1768972124424,0.00434741,2983.6,2982.8,1.66804193]
[1768972129626,0.16774,2984.1,2982.8,1.66804193]
[1768972130032,0.16771,2984.8,2983.4,1.83142123]
[1768972130240,0.92254813,2984.7,2983.4,1.83142123]
[1768972130441,0.16771,2984.8,2983.4,1.83142123]
[1768972130634,0.92207568,2984.7,2983.4,1.83142123]
[1768972130832,0.17111397,2984.8,2983.4,1.83142123]
[1768972131032,0.92207717,2984.7,2983.4,1.83142123]
[1768972131226,0.17111397,2984.8,2983.4,1.83142123]
[1768972131437,0.9216764,2984.7,2983.4,1.83142123]
[1768972131636,0.17111397,2984.8,2983.4,1.83142123]
[1768972132033,0.00340397,2984.8,2983.7,1.83142123]
[1768972140045,0.00340397,2984.8,2982.6,1.08232562]
[1768972140046,0.00340397,2984.8,2982.9,1.83142123]
[1768972140347,0.16773,2984.3,2983.0,1.83142123]
[1768972140548,2.84203228,2984.8,2983.0,1.83142123]
[1768972140549,0.16774,2984.2,2983.0,1.83142123]
[1768972140944,0.16774,2984.2,2982.6,6.26874685]
[1768972141146,0.16774,2984.2,2982.7,1.83142123]
[1768972144644,1.75630269,2984.3,2982.7,1.83142123]
[1768972145039,0.16776,2983.7,2982.7,1.83142123]
[1768972145239,0.16776,2983.7,2982.5,0.00286935]
[1768972146450,0.16777,2983.6,2982.5,0.00286935]
[1768972146755,0.16778,2983.4,2982.5,0.00286935]
[1768972147052,0.16779,2983.3,2982.5,0.00286935]
[1768972148448,0.16781,2982.9,2981.5,1.83142123]
[1768972149054,0.16782,2982.8,2981.5,1.83142123]
[1768972149455,0.16782,2982.8,2981.5,1.83547364]
[1768972156967,0.16778,2983.5,2982.3,2.94015347]
[1768972157264,0.16779,2983.3,2982.3,2.94015347]
[1768972157453,0.16779,2983.3,2982.4,1.85927211]
[1768972157649,0.16779,2983.3,2982.5,2.94015347]
[1768972159161,1.08088136,2983.8,2982.5,2.94015347]
[1768972159562,1.24864136,2983.8,2982.5,2.94015347]
[1768972161866,0.16776,2983.7,2982.5,2.94015347]
[1768972162066,1.24865136,2983.6,2982.5,1.85927211]
[1768972162867,1.24866136,2983.4,2982.1,2.94015347]
[1768972165066,0.16779,2983.3,2982.1,2.94015347]
[1768972166471,0.16779,2983.3,2982.2,1.85927211]
[1768972167272,0.1678,2983.2,2982.2,1.85927211]
[1768972167463,0.1678,2983.1,2982.2,1.85927211]
[1768972167663,0.16781,2983.0,2982.2,1.85927211]
[1768972177977,0.16781,2982.9,2981.9,2.94015347]
[1768972178175,0.16781,2982.9,2982.0,1.85927211]
[1768972184587,0.16781,2982.9,2982.1,1.08088136]
[1768972184780,0.16781,2982.9,2982.1,2.94015347]
[1768972185183,1.08088136,2983.4,2982.2,1.85927211]
[1768972185387,1.28933821,2983.3,2982.4,1.88889025]
[1768972185588,1.28933821,2983.2,2982.8,1.94493342]
[1768972185885,0.16778,2983.4,2982.8,1.94493342]
[1768972186083,1.28850398,2983.3,2982.8,1.94493342]
[1768972186387,0.36350692,2983.2,2982.8,1.94493342]
[1768972186599,0.16778,2983.4,2982.8,1.94493342]
[1768972186788,1.28691803,2983.3,2982.8,1.94493342]
[1768972186991,0.36180077,2983.2,2982.8,1.94493342]
[1768972187190,0.16778,2983.4,2982.8,1.94493342]
[1768972187390,1.2869177,2983.3,2982.8,1.94493342]
[1768972187591,0.36179854,2983.2,2982.8,1.94493342]
[1768972187788,0.16778,2983.4,2982.8,1.94493342]
[1768972187988,1.28691315,2983.3,2982.8,1.94493342]
[1768972188289,0.36179744,2983.2,2982.8,1.94493342]
[1768972188490,0.16778,2983.4,2982.8,1.94493342]
[1768972188692,1.28693129,2983.3,2982.8,1.94493342]
[1768972188894,0.3618024,2983.2,2982.8,1.94493342]
[1768972189095,0.16778,2983.4,2982.8,1.94493342]
[1768972189296,1.28694364,2983.3,2982.8,1.94493342]
[1768972189496,0.36180979,2983.2,2982.8,1.94493342]
[1768972189698,0.16778,2983.4,2982.5,1.08088136]
[1768972189999,1.28695922,2983.3,2982.5,3.02581478]
[1768972190297,0.3618101,2983.2,2982.5,3.02581478]
[1768972190607,0.16778,2983.4,2982.5,3.02581478]